Workbook

Sheet 2024 ORN-EOP-CALCULATOR
H1: =O14 -> Ornamental EOP Calculator - version 2024-0009-0010
K2: ="" -> 
O5: 2024-0009-0010
O6: 2024-0008-0009
O14: ="Ornamental EOP Calculator - version " & O5 -> Ornamental EOP Calculator - version 2024-0009-0010
Z15: TOTAL PURCHASE REBATE
B16: NAME YOUR DRAFT ORDER HERE: | Z16: MINIMUM QTY | AA16: MAXIMUM QTY | AB16: REBATE %
B17: Description: | Z17: 5000 | AA17: 24999 | AB17: 0.02
B18: Dist/DSR: | S18: ADMIN COLUMNS | Z18: 25000 | AA18: 49999 | AB18: 0.03
B19: MER#: | Z19: 50000 | AA19: 999999.99 | AB19: 0.04
B20: Last Updated:
B21: Created For: | M21: Count Sept. Bonus?
B22: Region | C22: National
F23: HIDE | M23: Yes | R23: HIDE | S23: HIDE | T23: HIDE | U23: HIDE | V23: HIDE | W23: HIDE | X23: HIDE | Y23: HIDE | Z23: HIDE | AA23: HIDE | AB23: HIDE
R24: MULTI-BRAND REBATE | Z24: PURCHASE TIER REBATE
B25: MULTI-BRAND REBATE REQUIREMENT | C25: PRODUCT NAME | D25: VOLUME BREAKS | E25: # UNITS | F25: INSEASON PRICE | G25: INSEASON SUBTOTAL | H25: PRICE/ UNIT* | I25: INVOICE SUBTOTAL (must be a minimum of $5,000 to receive rebates) | J25: MULTI-BRAND REBATE**† | K25: PURCHASE TIER REBATE**† | L25: NET PRICE/UNIT (all rebates, incl. purchase tier) | M25: TOTAL AFTER REBATE | R25: Altus | S25: Broadform | T25: Kontos | U25: Marengo FLO | V25: Marengo G | W25: Savate | X25: Qualifying Brands | Y25: Rebate | Z25: Sept. Bonus | AA25: Purchase Tier Rebate | AB25: Total must be > $5000 to qualify for rebates
J27: =Y27 -> 0 | K27: =IF(AND(AB49>=5000,M23="Yes"),AA49+0.01,IF(AB49>=5000,AA49,0)) -> 0 | R27: 16 | S27: 16 | T27: 12 | U27: 8 | V27: 40 | W27: 12 | X27: =AVERAGE(X28:X45) -> 0 | Y27: =MAX(Y28:Y45) -> 0
A28: Altus (64 fl.oz. bottle), 1-15 | B28: 16 Bottles | C28: Altus® (64 fl.oz. bottle) | D28: 1-15 bottles | F28: =INDEX(Pricing!$G$4:$I$21,MATCH('2024 ORN-EOP-CALCULATOR'!$A28,Pricing!$A$4:$A$21,0),MATCH('2024 ORN-EOP-CALCULATOR'!$C$22,Pricing!$G$3:$I$3,0)) -> 428.4 | G28: =IF(E28*F28= 0,"",E28*F28) ->  | H28: =INDEX(Pricing!$A$4:$F$21,MATCH('2024 ORN-EOP-CALCULATOR'!$A28,Pricing!$A$4:$A$21,0),MATCH('2024 ORN-EOP-CALCULATOR'!$C$22,Pricing!$A$3:$F$3,0)) -> 428.4 | I28: =IF(E28*H28= 0,"",E28*H28) ->  | J28: =IF(E28*Y28= 0,0,I28*Y28) -> 0 | K28: =IF(OR(G28 ="",Z28+AA28=0),0,E28*H28*(Z28+AA28)) -> 0 | L28: =IF(AND(E28<>"",E28>0),((I28/E28)-((J28+K28)/E28)),"") ->  | M28: =IF(AND(E28<>"",E28>0), E28*L28,"") ->  | R28: =IF(($E$28+$E$29+$E$30)>=$R$27,"Yes","No") -> No | S28: =IF(($E$31+$E$32+$E$33)>=$S$27,"Yes","No") -> No | T28: =IF(($E$34+$E$35+$E$36)>=$T$27,"Yes","No") -> No | U28: =IF(($E$37+$E$38+$E$39)>=$U$27,"Yes","No") -> No | V28: =IF(($E$40+$E$41+$E$42)>=$V$27,"Yes","No") -> No | W28: =IF(($E$43+$E$44+$E$45)>=$W$27,"Yes","No") -> No | X28: =COUNTIF(R28:W28,"Yes") -> 0 | Y28: =IF(R28="No",0,IF(X28>=5,0.04,IF(X28=4,0.03,IF(X28=3,0.02,0)))) -> 0 | Z28: =IF(AND(E28 <>"",AB$49>=5000,$M$23="Yes"),0.01,0) -> 0 | AA28: =IF(E28 <>"", AA$49,0) -> 0 | AB28: =IF(E28 = "",0,H28*E28) -> 0
A29: Altus (64 fl.oz. bottle), 16-31 | D29: 16-31 bottles | F29: =INDEX(Pricing!$G$4:$I$21,MATCH('2024 ORN-EOP-CALCULATOR'!$A29,Pricing!$A$4:$A$21,0),MATCH('2024 ORN-EOP-CALCULATOR'!$C$22,Pricing!$G$3:$I$3,0)) -> 428.4 | H29: =INDEX(Pricing!$A$4:$F$21,MATCH('2024 ORN-EOP-CALCULATOR'!$A29,Pricing!$A$4:$A$21,0),MATCH('2024 ORN-EOP-CALCULATOR'!$C$22,Pricing!$A$3:$F$3,0)) -> 406.98 | I29: =IF(E29*H29= 0,"",E29*H29) ->  | J29: =IF(E29*Y29= 0,0,I29*Y29) -> 0 | K29: 0 | L29: =IF(AND(E29<>"",E29>0),((I29/E29)-((J29+K29)/E29)),"") ->  | M29: =IF(AND(E29<>"",E29>0), E29*L29,"") ->  | R29: =IF(($E$28+$E$29+$E$30)>=$R$27,"Yes","No") -> No | S29: No | T29: No | U29: No | V29: No | W29: No | X29: 0 | Y29: =IF(R29="No",0,IF(X29>=5,0.04,IF(X29=4,0.03,IF(X29=3,0.02,0)))) -> 0 | Z29: 0 | AA29: 0 | AB29: 0
A30: Altus (64 fl.oz. bottle), 32+ | D30: 32+ bottles | F30: =INDEX(Pricing!$G$4:$I$21,MATCH('2024 ORN-EOP-CALCULATOR'!$A30,Pricing!$A$4:$A$21,0),MATCH('2024 ORN-EOP-CALCULATOR'!$C$22,Pricing!$G$3:$I$3,0)) -> 428.4 | H30: =INDEX(Pricing!$A$4:$F$21,MATCH('2024 ORN-EOP-CALCULATOR'!$A30,Pricing!$A$4:$A$21,0),MATCH('2024 ORN-EOP-CALCULATOR'!$C$22,Pricing!$A$3:$F$3,0)) -> 385.56 | J30: 0 | K30: 0 | R30: =IF(($E$28+$E$29+$E$30)>=$R$27,"Yes","No") -> No | S30: No | T30: No | U30: No | V30: No | W30: No | X30: 0 | Y30: 0 | Z30: 0 | AA30: 0 | AB30: 0
A31: Broadform (12 fl. oz. bottle), 1-15 | B31: 16 Bottles | C31: Broadform® (12 fl. oz. bottle) | D31: 1-15 bottles | F31: =INDEX(Pricing!$G$4:$I$21,MATCH('2024 ORN-EOP-CALCULATOR'!$A31,Pricing!$A$4:$A$21,0),MATCH('2024 ORN-EOP-CALCULATOR'!$C$22,Pricing!$G$3:$I$3,0)) -> 247.2 | H31: =INDEX(Pricing!$A$4:$F$21,MATCH('2024 ORN-EOP-CALCULATOR'!$A31,Pricing!$A$4:$A$21,0),MATCH('2024 ORN-EOP-CALCULATOR'!$C$22,Pricing!$A$3:$F$3,0)) -> 247.2 | J31: 0 | K31: 0 | R31: =IF(($E$28+$E$29+$E$30)>=$R$27,"Yes","No") -> No | S31: No | T31: No | U31: No | V31: No | W31: No | X31: 0 | Y31: =IF(S31="No",0,IF(X31>=5,0.04,IF(X31=4,0.03,IF(X31=3,0.02,0)))) -> 0 | Z31: 0 | AA31: 0 | AB31: 0
A32: Broadform (12 fl. oz. bottle), 16-31 | D32: 16-31 bottles | F32: =INDEX(Pricing!$G$4:$I$21,MATCH('2024 ORN-EOP-CALCULATOR'!$A32,Pricing!$A$4:$A$21,0),MATCH('2024 ORN-EOP-CALCULATOR'!$C$22,Pricing!$G$3:$I$3,0)) -> 247.2 | H32: =INDEX(Pricing!$A$4:$F$21,MATCH('2024 ORN-EOP-CALCULATOR'!$A32,Pricing!$A$4:$A$21,0),MATCH('2024 ORN-EOP-CALCULATOR'!$C$22,Pricing!$A$3:$F$3,0)) -> 234.84 | J32: 0 | K32: 0 | R32: No | S32: No | T32: No | U32: No | V32: No | W32: No | X32: 0 | Y32: =IF(S32="No",0,IF(X32>=5,0.04,IF(X32=4,0.03,IF(X32=3,0.02,0)))) -> 0 | Z32: 0 | AA32: 0 | AB32: 0
A33: Broadform (12 fl. oz. bottle), 32+ | D33: 32+ bottles | F33: =INDEX(Pricing!$G$4:$I$21,MATCH('2024 ORN-EOP-CALCULATOR'!$A33,Pricing!$A$4:$A$21,0),MATCH('2024 ORN-EOP-CALCULATOR'!$C$22,Pricing!$G$3:$I$3,0)) -> 247.2 | H33: =INDEX(Pricing!$A$4:$F$21,MATCH('2024 ORN-EOP-CALCULATOR'!$A33,Pricing!$A$4:$A$21,0),MATCH('2024 ORN-EOP-CALCULATOR'!$C$22,Pricing!$A$3:$F$3,0)) -> 222.48 | J33: 0 | K33: 0 | R33: No | S33: No | T33: No | U33: No | V33: No | W33: No | X33: 0 | Y33: 0 | Z33: 0 | AA33: 0 | AB33: 0
A34: Kontos (250 ml. bottle), 1-11 | B34: 12 Bottles | C34: Kontos® (250 ml. bottle) | D34: 1-11 bottles | F34: =INDEX(Pricing!$G$4:$I$21,MATCH('2024 ORN-EOP-CALCULATOR'!$A34,Pricing!$A$4:$A$21,0),MATCH('2024 ORN-EOP-CALCULATOR'!$C$22,Pricing!$G$3:$I$3,0)) -> 221.6 | G34: =IF(E34*F34= 0,"",E34*F34) ->  | H34: =INDEX(Pricing!$A$4:$F$21,MATCH('2024 ORN-EOP-CALCULATOR'!$A34,Pricing!$A$4:$A$21,0),MATCH('2024 ORN-EOP-CALCULATOR'!$C$22,Pricing!$A$3:$F$3,0)) -> 221.6 | J34: 0 | K34: 0 | R34: No | S34: No | T34: No | U34: No | V34: No | W34: No | X34: 0 | Y34: =IF(T34="No",0,IF(X34>=5,0.04,IF(X34=4,0.03,IF(X34=3,0.02,0)))) -> 0 | Z34: 0 | AA34: 0 | AB34: 0
A35: Kontos (250 ml. bottle), 12-29 | D35: 12-29 bottles | F35: =INDEX(Pricing!$G$4:$I$21,MATCH('2024 ORN-EOP-CALCULATOR'!$A35,Pricing!$A$4:$A$21,0),MATCH('2024 ORN-EOP-CALCULATOR'!$C$22,Pricing!$G$3:$I$3,0)) -> 221.6 | H35: =INDEX(Pricing!$A$4:$F$21,MATCH('2024 ORN-EOP-CALCULATOR'!$A35,Pricing!$A$4:$A$21,0),MATCH('2024 ORN-EOP-CALCULATOR'!$C$22,Pricing!$A$3:$F$3,0)) -> 210.52 | J35: 0 | K35: 0 | R35: No | S35: No | T35: No | U35: No | V35: No | W35: No | X35: 0 | Y35: =IF(T35="No",0,IF(X35>=5,0.04,IF(X35=4,0.03,IF(X35=3,0.02,0)))) -> 0 | Z35: 0 | AA35: 0 | AB35: 0
A36: Kontos (250 ml. bottle), 30+ | D36: 30+ bottles | F36: =INDEX(Pricing!$G$4:$I$21,MATCH('2024 ORN-EOP-CALCULATOR'!$A36,Pricing!$A$4:$A$21,0),MATCH('2024 ORN-EOP-CALCULATOR'!$C$22,Pricing!$G$3:$I$3,0)) -> 221.6 | H36: =INDEX(Pricing!$A$4:$F$21,MATCH('2024 ORN-EOP-CALCULATOR'!$A36,Pricing!$A$4:$A$21,0),MATCH('2024 ORN-EOP-CALCULATOR'!$C$22,Pricing!$A$3:$F$3,0)) -> 199.44 | J36: 0 | K36: 0 | R36: No | S36: No | T36: No | U36: No | V36: No | W36: No | X36: 0 | Y36: 0 | Z36: 0 | AA36: 0 | AB36: 0
A37: Marengo FLO (64 fl.oz. bottle), 1-3 | B37: 8 Bottles | C37: Marengo® FLO (64 fl.oz. bottle) | D37: 1-3 bottles | F37: =INDEX(Pricing!$G$4:$I$21,MATCH('2024 ORN-EOP-CALCULATOR'!$A37,Pricing!$A$4:$A$21,0),MATCH('2024 ORN-EOP-CALCULATOR'!$C$22,Pricing!$G$3:$I$3,0)) -> 1134 | G37: =IF(E37*F37= 0,"",E37*F37) ->  | H37: =INDEX(Pricing!$A$4:$F$21,MATCH('2024 ORN-EOP-CALCULATOR'!$A37,Pricing!$A$4:$A$21,0),MATCH('2024 ORN-EOP-CALCULATOR'!$C$22,Pricing!$A$3:$F$3,0)) -> 1134 | J37: 0 | K37: 0 | R37: No | S37: No | T37: No | U37: No | V37: No | W37: No | X37: 0 | Y37: =IF(U37="No",0,IF(X37>=5,0.04,IF(X37=4,0.03,IF(X37=3,0.02,0)))) -> 0 | Z37: 0 | AA37: 0 | AB37: 0
A38: Marengo FLO (64 fl.oz. bottle), 4-15 | D38: 4-15 bottles | F38: =INDEX(Pricing!$G$4:$I$21,MATCH('2024 ORN-EOP-CALCULATOR'!$A38,Pricing!$A$4:$A$21,0),MATCH('2024 ORN-EOP-CALCULATOR'!$C$22,Pricing!$G$3:$I$3,0)) -> 1134 | H38: =INDEX(Pricing!$A$4:$F$21,MATCH('2024 ORN-EOP-CALCULATOR'!$A38,Pricing!$A$4:$A$21,0),MATCH('2024 ORN-EOP-CALCULATOR'!$C$22,Pricing!$A$3:$F$3,0)) -> 1077.3 | J38: 0 | K38: 0 | R38: No | S38: No | T38: No | U38: No | V38: No | W38: No | X38: 0 | Y38: =IF(U38="No",0,IF(X38>=5,0.04,IF(X38=4,0.03,IF(X38=3,0.02,0)))) -> 0 | Z38: 0 | AA38: 0 | AB38: 0
A39: Marengo FLO (64 fl.oz. bottle), 16+ | D39: 16+ bottles | F39: =INDEX(Pricing!$G$4:$I$21,MATCH('2024 ORN-EOP-CALCULATOR'!$A39,Pricing!$A$4:$A$21,0),MATCH('2024 ORN-EOP-CALCULATOR'!$C$22,Pricing!$G$3:$I$3,0)) -> 1134 | G39: =IF(E39*F39= 0,"",E39*F39) ->  | H39: =INDEX(Pricing!$A$4:$F$21,MATCH('2024 ORN-EOP-CALCULATOR'!$A39,Pricing!$A$4:$A$21,0),MATCH('2024 ORN-EOP-CALCULATOR'!$C$22,Pricing!$A$3:$F$3,0)) -> 1020.6 | J39: 0 | K39: 0 | R39: No | S39: No | T39: No | U39: No | V39: No | W39: No | X39: 0 | Y39: 0 | Z39: 0 | AA39: 0 | AB39: 0
A40: Marengo G (50 lb. bag), 1-39 | B40: 40 Bags | C40: Marengo® G (50 lb. bag) | D40: 1-39 bags | F40: =INDEX(Pricing!$G$4:$I$21,MATCH('2024 ORN-EOP-CALCULATOR'!$A40,Pricing!$A$4:$A$21,0),MATCH('2024 ORN-EOP-CALCULATOR'!$C$22,Pricing!$G$3:$I$3,0)) -> 124 | G40: =IF(E40*F40= 0,"",E40*F40) ->  | H40: =INDEX(Pricing!$A$4:$F$21,MATCH('2024 ORN-EOP-CALCULATOR'!$A40,Pricing!$A$4:$A$21,0),MATCH('2024 ORN-EOP-CALCULATOR'!$C$22,Pricing!$A$3:$F$3,0)) -> 124 | J40: 0 | K40: 0 | R40: No | S40: No | T40: No | U40: No | V40: No | W40: No | X40: 0 | Y40: =IF(V40="No",0,IF(X40>=5,0.04,IF(X40=4,0.03,IF(X40=3,0.02,0)))) -> 0 | Z40: 0 | AA40: 0 | AB40: 0
A41: Marengo G (50 lb. bag), 40-119 | D41: 40-119 bags | F41: =INDEX(Pricing!$G$4:$I$21,MATCH('2024 ORN-EOP-CALCULATOR'!$A41,Pricing!$A$4:$A$21,0),MATCH('2024 ORN-EOP-CALCULATOR'!$C$22,Pricing!$G$3:$I$3,0)) -> 124 | G41: =IF(E41*F41= 0,"",E41*F41) ->  | H41: =INDEX(Pricing!$A$4:$F$21,MATCH('2024 ORN-EOP-CALCULATOR'!$A41,Pricing!$A$4:$A$21,0),MATCH('2024 ORN-EOP-CALCULATOR'!$C$22,Pricing!$A$3:$F$3,0)) -> 117.8 | J41: 0 | K41: 0 | R41: No | S41: No | T41: No | U41: No | V41: No | W41: No | X41: 0 | Y41: =IF(V41="No",0,IF(X41>=5,0.04,IF(X41=4,0.03,IF(X41=3,0.02,0)))) -> 0 | Z41: 0 | AA41: 0 | AB41: 0
A42: Marengo G (50 lb. bag), 120+ | D42: 120+ bags | F42: =INDEX(Pricing!$G$4:$I$21,MATCH('2024 ORN-EOP-CALCULATOR'!$A42,Pricing!$A$4:$A$21,0),MATCH('2024 ORN-EOP-CALCULATOR'!$C$22,Pricing!$G$3:$I$3,0)) -> 124 | H42: =INDEX(Pricing!$A$4:$F$21,MATCH('2024 ORN-EOP-CALCULATOR'!$A42,Pricing!$A$4:$A$21,0),MATCH('2024 ORN-EOP-CALCULATOR'!$C$22,Pricing!$A$3:$F$3,0)) -> 111.6 | J42: 0 | K42: 0 | R42: No | S42: No | T42: No | U42: No | V42: No | W42: No | X42: 0 | Y42: 0 | Z42: 0 | AA42: 0 | AB42: 0
A43: Savate (8 fl.oz. bottle), 1-11 | B43: 12 Bottles | C43: Savate® (8 fl.oz. bottle) | D43: 1-11 bottles | F43: =INDEX(Pricing!$G$4:$I$21,MATCH('2024 ORN-EOP-CALCULATOR'!$A43,Pricing!$A$4:$A$21,0),MATCH('2024 ORN-EOP-CALCULATOR'!$C$22,Pricing!$G$3:$I$3,0)) -> 380.8 | H43: =INDEX(Pricing!$A$4:$F$21,MATCH('2024 ORN-EOP-CALCULATOR'!$A43,Pricing!$A$4:$A$21,0),MATCH('2024 ORN-EOP-CALCULATOR'!$C$22,Pricing!$A$3:$F$3,0)) -> 380.8 | J43: 0 | K43: 0 | R43: No | S43: No | T43: No | U43: No | V43: No | W43: No | X43: 0 | Y43: =IF(W43="No",0,IF(X43>=5,0.04,IF(X43=4,0.03,IF(X43=3,0.02,0)))) -> 0 | Z43: 0 | AA43: 0 | AB43: 0
A44: Savate (8 fl.oz. bottle), 12-29 | D44: 12-29 bottles | F44: =INDEX(Pricing!$G$4:$I$21,MATCH('2024 ORN-EOP-CALCULATOR'!$A44,Pricing!$A$4:$A$21,0),MATCH('2024 ORN-EOP-CALCULATOR'!$C$22,Pricing!$G$3:$I$3,0)) -> 380.8 | H44: =INDEX(Pricing!$A$4:$F$21,MATCH('2024 ORN-EOP-CALCULATOR'!$A44,Pricing!$A$4:$A$21,0),MATCH('2024 ORN-EOP-CALCULATOR'!$C$22,Pricing!$A$3:$F$3,0)) -> 361.76 | J44: 0 | K44: 0 | R44: No | S44: No | T44: No | U44: No | V44: No | W44: No | X44: 0 | Y44: =IF(W44="No",0,IF(X44>=5,0.04,IF(X44=4,0.03,IF(X44=3,0.02,0)))) -> 0 | Z44: 0 | AA44: 0 | AB44: 0
A45: Savate (8 fl.oz. bottle), 30+ | D45: 30+ bottles | F45: =INDEX(Pricing!$G$4:$I$21,MATCH('2024 ORN-EOP-CALCULATOR'!$A45,Pricing!$A$4:$A$21,0),MATCH('2024 ORN-EOP-CALCULATOR'!$C$22,Pricing!$G$3:$I$3,0)) -> 380.8 | H45: =INDEX(Pricing!$A$4:$F$21,MATCH('2024 ORN-EOP-CALCULATOR'!$A45,Pricing!$A$4:$A$21,0),MATCH('2024 ORN-EOP-CALCULATOR'!$C$22,Pricing!$A$3:$F$3,0)) -> 342.72 | J45: 0 | K45: 0 | R45: No | S45: No | T45: No | U45: No | V45: No | W45: No | X45: 0 | Y45: 0 | Z45: 0 | AA45: 0 | AB45: 0
G46: =SUM(G28:G45) -> 0 | I46: =SUM(I28:I45) -> 0 | J46: =SUM(J28:J45) -> 0 | K46: =SUM(K28:K45) -> 0 | M46: =SUM(M28:M45) -> 0
Z47: 0 | AA47: 0 | AB47: 0
Z48: 0 | AA48: 0 | AB48: 0
AA49: =IF(OR(AB$49="",AB$49<=5000),0,(VLOOKUP(AB49,Z17:AB19,3))) -> 0 | AB49: =SUM(AB28:AB48) -> 0
B51: Summary
B52: Summary is provided as an estimate only. See program rules and conditions.
B54: Total Before Off Invoice Volume Discounts | E54: =G46 -> 0
B55: Off Invoice Volume Discount | E55: =E54-E56 -> 0
B56: Ornamental EOP Invoice Total | E56: =I46 -> 0
B57: Purchase Tier Level | E57: =IF(AND(I46<>"",I46> 0),K27,0) -> 0
B58: Rebate Total Program Purchase must be a minimum of $5,000 to receive rebates | E58: =IF(E57=0,0,SUM(J28:K45)) -> 0
B59: Net Total after Rebate | E59: =E56-E58 -> 0
B60: Rebate % Total Program Purchase must be a minimum of $5,000 to receive rebates | E60: =IF(AND(E58<>"",E58> 0), (E58/E56),0) -> 0
B61: Total Savings (Rebates + Off Invoice Volume Discounts) | E61: =IF(AND(E56<>"",E56> 0),E54-E59,0) -> 0
B62: Total Savings % (Rebates + Off Invoice Volume Discounts) | E62: =IF(AND(E54 <> "", E54 > 0), ((E54 - E56) + E58)/E54,0) -> 0
B64: =CONCATENATE("Estimated MER points to be earned: ",TEXT(IF(AND(E58 <>"", E58 > 0),E58*100, 0),"#,##0")) -> Estimated MER points to be earned: 0

Sheet PRINTABLE SUMMARY
H8: ="Ornamental EOP Calculator - version " & '2024 ORN-EOP-CALCULATOR'!O5 -> Ornamental EOP Calculator - version 2024-0009-0010
B9: ='2024 ORN-EOP-CALCULATOR'!B16 -> NAME YOUR DRAFT ORDER HERE:
B10: Description: | C10: =IF('2024 ORN-EOP-CALCULATOR'!C17="","",'2024 ORN-EOP-CALCULATOR'!C17) -> 
B11: Distributor/DSR: | C11: =IF('2024 ORN-EOP-CALCULATOR'!C18="","",'2024 ORN-EOP-CALCULATOR'!C18) -> 
B12: MER#: | C12: =IF('2024 ORN-EOP-CALCULATOR'!C19="","",'2024 ORN-EOP-CALCULATOR'!C19) -> 
B13: Last Updated: | C13: =IF('2024 ORN-EOP-CALCULATOR'!C20="","",'2024 ORN-EOP-CALCULATOR'!C20) -> 
B14: Created For: | C14: =IF('2024 ORN-EOP-CALCULATOR'!C21="","",'2024 ORN-EOP-CALCULATOR'!C21) -> 
B15: Region: | C15: ='2024 ORN-EOP-CALCULATOR'!C22 -> National
B18: AGENCY PRODUCTS
B19: PRODUCT NAME | C19: VOLUME BREAKS | D19: # UNITS | E19: PRICE/UNIT | F19: SUBTOTAL | G19: NET PRICE/UNIT
B20: Altus® (64 fl.oz. jug) | C20: 1-15 bottles | D20: ='2024 ORN-EOP-CALCULATOR'!E28 -> 0 | E20: ='2024 ORN-EOP-CALCULATOR'!H28 -> 428.4 | F20: ='2024 ORN-EOP-CALCULATOR'!I28 ->  | G20: ='2024 ORN-EOP-CALCULATOR'!L28 -> 
C21: 16-31 bottles | D21: ='2024 ORN-EOP-CALCULATOR'!E29 -> 0 | E21: ='2024 ORN-EOP-CALCULATOR'!H29 -> 406.98 | F21: ='2024 ORN-EOP-CALCULATOR'!I29 ->  | G21: ='2024 ORN-EOP-CALCULATOR'!L29 -> 
C22: 32+ bottles | D22: ='2024 ORN-EOP-CALCULATOR'!E30 -> 0 | E22: ='2024 ORN-EOP-CALCULATOR'!H30 -> 385.56 | F22: ='2024 ORN-EOP-CALCULATOR'!I30 ->  | G22: ='2024 ORN-EOP-CALCULATOR'!L30 -> 
B23: Broadform® (12 fl. oz. bottle) | C23: 1-15 bottles | D23: ='2024 ORN-EOP-CALCULATOR'!E31 -> 0 | E23: ='2024 ORN-EOP-CALCULATOR'!H31 -> 247.2 | F23: ='2024 ORN-EOP-CALCULATOR'!I31 ->  | G23: ='2024 ORN-EOP-CALCULATOR'!L31 -> 
C24: 16-31 bottles | D24: ='2024 ORN-EOP-CALCULATOR'!E32 -> 0 | E24: ='2024 ORN-EOP-CALCULATOR'!H32 -> 234.84 | F24: ='2024 ORN-EOP-CALCULATOR'!I32 ->  | G24: ='2024 ORN-EOP-CALCULATOR'!L32 -> 
C25: 32+ bottles | D25: ='2024 ORN-EOP-CALCULATOR'!E33 -> 0 | E25: ='2024 ORN-EOP-CALCULATOR'!H33 -> 222.48 | F25: ='2024 ORN-EOP-CALCULATOR'!I33 ->  | G25: ='2024 ORN-EOP-CALCULATOR'!L33 -> 
B26: Kontos® (250 ml. bottle) | C26: 1-11 bottles | D26: ='2024 ORN-EOP-CALCULATOR'!E34 -> 0 | E26: ='2024 ORN-EOP-CALCULATOR'!H34 -> 221.6 | F26: ='2024 ORN-EOP-CALCULATOR'!I34 ->  | G26: ='2024 ORN-EOP-CALCULATOR'!L34 -> 
C27: 12-29 bottles | D27: ='2024 ORN-EOP-CALCULATOR'!E35 -> 0 | E27: ='2024 ORN-EOP-CALCULATOR'!H35 -> 210.52 | F27: ='2024 ORN-EOP-CALCULATOR'!I35 ->  | G27: ='2024 ORN-EOP-CALCULATOR'!L35 -> 
C28: 30+ bottles | D28: ='2024 ORN-EOP-CALCULATOR'!E36 -> 0 | E28: ='2024 ORN-EOP-CALCULATOR'!H36 -> 199.44 | F28: ='2024 ORN-EOP-CALCULATOR'!I36 ->  | G28: ='2024 ORN-EOP-CALCULATOR'!L36 -> 
B29: Marengo® FLO (64 fl.oz. jug) | C29: 1-3 bottles | D29: ='2024 ORN-EOP-CALCULATOR'!E37 -> 0 | E29: ='2024 ORN-EOP-CALCULATOR'!H37 -> 1134 | F29: ='2024 ORN-EOP-CALCULATOR'!I37 ->  | G29: ='2024 ORN-EOP-CALCULATOR'!L37 -> 
C30: 4-15 bottles | D30: ='2024 ORN-EOP-CALCULATOR'!E38 -> 0 | E30: ='2024 ORN-EOP-CALCULATOR'!H38 -> 1077.3 | F30: ='2024 ORN-EOP-CALCULATOR'!I38 ->  | G30: ='2024 ORN-EOP-CALCULATOR'!L38 -> 
C31: 16+ bottles | D31: ='2024 ORN-EOP-CALCULATOR'!E39 -> 0 | E31: ='2024 ORN-EOP-CALCULATOR'!H39 -> 1020.6 | F31: ='2024 ORN-EOP-CALCULATOR'!I39 ->  | G31: ='2024 ORN-EOP-CALCULATOR'!L39 -> 
B32: Marengo® G (50 lb. bag) | C32: 1-39 bags | D32: ='2024 ORN-EOP-CALCULATOR'!E40 -> 0 | E32: ='2024 ORN-EOP-CALCULATOR'!H40 -> 124 | F32: ='2024 ORN-EOP-CALCULATOR'!I40 ->  | G32: ='2024 ORN-EOP-CALCULATOR'!L40 -> 
C33: 40-119 bags | D33: ='2024 ORN-EOP-CALCULATOR'!E41 -> 0 | E33: ='2024 ORN-EOP-CALCULATOR'!H41 -> 117.8 | F33: ='2024 ORN-EOP-CALCULATOR'!I41 ->  | G33: ='2024 ORN-EOP-CALCULATOR'!L41 -> 
C34: 120+ bags | D34: ='2024 ORN-EOP-CALCULATOR'!E42 -> 0 | E34: ='2024 ORN-EOP-CALCULATOR'!H42 -> 111.6 | F34: ='2024 ORN-EOP-CALCULATOR'!I42 ->  | G34: ='2024 ORN-EOP-CALCULATOR'!L42 -> 
B35: Savate® (8 fl.oz. bottle) | C35: 1-11 bottles | D35: ='2024 ORN-EOP-CALCULATOR'!E43 -> 0 | E35: ='2024 ORN-EOP-CALCULATOR'!H43 -> 380.8 | F35: ='2024 ORN-EOP-CALCULATOR'!I43 ->  | G35: ='2024 ORN-EOP-CALCULATOR'!L43 -> 
C36: 12-29 bottles | D36: ='2024 ORN-EOP-CALCULATOR'!E44 -> 0 | E36: ='2024 ORN-EOP-CALCULATOR'!H44 -> 361.76 | F36: ='2024 ORN-EOP-CALCULATOR'!I44 ->  | G36: ='2024 ORN-EOP-CALCULATOR'!L44 -> 
C37: 30+ bottles | D37: ='2024 ORN-EOP-CALCULATOR'!E45 -> 0 | E37: ='2024 ORN-EOP-CALCULATOR'!H45 -> 342.72 | F37: ='2024 ORN-EOP-CALCULATOR'!I45 ->  | G37: ='2024 ORN-EOP-CALCULATOR'!L45 -> 
F38: =SUM(F20:F37) -> 0
B39: Summary
B40: Summary is provided as an estimate only. See program rules and conditions.
B43: Total Before Off Invoice Discounts | F43: ='2024 ORN-EOP-CALCULATOR'!E54 -> 0
B44: Off Invoice Volume Discount | F44: ='2024 ORN-EOP-CALCULATOR'!E55 -> 0
B45: Ornamental EOP Total | F45: ='2024 ORN-EOP-CALCULATOR'!E56 -> 0
B46: Purchase Tier Level | F46: ='2024 ORN-EOP-CALCULATOR'!E57 -> 0
B47: Rebate (Total Program Purchase must be a min of $5K to receive rebates) | F47: ='2024 ORN-EOP-CALCULATOR'!E58 -> 0
B48: Net Total after Rebates | F48: ='2024 ORN-EOP-CALCULATOR'!E59 -> 0
B49: Rebate % (Total Program Purchase must be a min of $5K to receive rebates) | F49: ='2024 ORN-EOP-CALCULATOR'!E60 -> 0
B50: Total Savings (Rebates + Off Invoice Discounts) | F50: ='2024 ORN-EOP-CALCULATOR'!E61 -> 0
B51: Total Savings % (Rebates + Off Invoice Discounts) | F51: ='2024 ORN-EOP-CALCULATOR'!E62 -> 0
B53: =CONCATENATE("Estimated MER points to be earned in the Product Cart: ",TEXT(IF(AND(F47 <>"", F47 > 0),F47*100, 0),"#,##0")) -> Estimated MER points to be earned in the Product Cart: 0

Sheet Pricing (hidden)
A1: 1 | B1: =A1+1 -> 2 | C1: =B1+1 -> 3 | D1: 4 | E1: 5 | F1: 6 | G1: 7 | H1: 8 | I1: 9
G2: In Season Price
D3: National | E3: CA | F3: WA | G3: National | H3: CA | I3: WA
A4: Altus (64 fl.oz. bottle), 1-15 | B4: Altus (64 fl.oz. bottle) | C4: 1-15 | D4: 428.4 | E4: 439.22 | F4: 431.4 | G4: 428.4 | H4: 439.22 | I4: 431.4
A5: Altus (64 fl.oz. bottle), 16-31 | B5: Altus (64 fl.oz. bottle) | C5: 16-31 | D5: 406.98 | E5: 417.26 | F5: 409.82 | G5: 428.4 | H5: 439.22 | I5: 431.4
A6: Altus (64 fl.oz. bottle), 32+ | B6: Altus (64 fl.oz. bottle) | C6: 32+ | D6: 385.56 | E6: 395.3 | F6: 388.26 | G6: 428.4 | H6: 439.22 | I6: 431.4
A7: Broadform (12 fl. oz. bottle), 1-15 | B7: Broadform (12 fl. oz. bottle) | C7: 1-15 | D7: 247.2 | E7: 253.44 | F7: 248.94 | G7: 247.2 | H7: 253.44 | I7: 248.94
A8: Broadform (12 fl. oz. bottle), 16-31 | B8: Broadform (12 fl. oz. bottle) | C8: 16-31 | D8: 234.84 | E8: 240.76 | F8: 236.48 | G8: 247.2 | H8: 253.44 | I8: 248.94
A9: Broadform (12 fl. oz. bottle), 32+ | B9: Broadform (12 fl. oz. bottle) | C9: 32+ | D9: 222.48 | E9: 228.1 | F9: 224.05 | G9: 247.2 | H9: 253.44 | I9: 248.94
A10: Kontos (250 ml. bottle), 1-11 | B10: Kontos (250 ml. bottle) | C10: 1-11 | D10: 221.6 | E10: 227.2 | F10: 223.16 | G10: 221.6 | H10: 227.2 | I10: 223.16
A11: Kontos (250 ml. bottle), 12-29 | B11: Kontos (250 ml. bottle) | C11: 12-29 | D11: 210.52 | E11: 215.84 | F11: 212.002 | G11: 221.6 | H11: 227.2 | I11: 223.16
A12: Kontos (250 ml. bottle), 30+ | B12: Kontos (250 ml. bottle) | C12: 30+ | D12: 199.44 | E12: 204.48 | F12: 200.84 | G12: 221.6 | H12: 227.2 | I12: 223.16
A13: Marengo FLO (64 fl.oz. bottle), 1-3 | B13: Marengo FLO (64 fl.oz. bottle) | C13: 1-3 | D13: 1134 | E13: 1162.64 | F13: 1141.94 | G13: 1134 | H13: 1162.64 | I13: 1141.94
A14: Marengo FLO (64 fl.oz. bottle), 4-15 | B14: Marengo FLO (64 fl.oz. bottle) | C14: 4-15 | D14: 1077.3 | E14: 1104.5 | F14: 1084.84 | G14: 1134 | H14: 1162.64 | I14: 1141.94
A15: Marengo FLO (64 fl.oz. bottle), 16+ | B15: Marengo FLO (64 fl.oz. bottle) | C15: 16+ | D15: 1020.6 | E15: 1046.38 | F15: 1027.74 | G15: 1134 | H15: 1162.64 | I15: 1141.94
A16: Marengo G (50 lb. bag), 1-39 | B16: Marengo G (50 lb. bag) | C16: 1-39 | D16: 124 | E16: 127 | F16: 125 | G16: 124 | H16: 127 | I16: 125
A17: Marengo G (50 lb. bag), 40-119 | B17: Marengo G (50 lb. bag) | C17: 40-119 | D17: 117.8 | E17: 121 | F17: 119 | G17: 124 | H17: 127 | I17: 125
A18: Marengo G (50 lb. bag), 120+ | B18: Marengo G (50 lb. bag) | C18: 120+ | D18: 111.6 | E18: 114 | F18: 112 | G18: 124 | H18: 127 | I18: 125
A19: Savate (8 fl.oz. bottle), 1-11 | B19: Savate (8 fl.oz. bottle) | C19: 1-11 | D19: 380.8 | E19: 390.42 | F19: 383.46 | G19: 380.8 | H19: 390.42 | I19: 383.46
A20: Savate (8 fl.oz. bottle), 12-29 | B20: Savate (8 fl.oz. bottle) | C20: 12-29 | D20: 361.76 | E20: 370.9 | F20: 364.3 | G20: 380.8 | H20: 390.42 | I20: 383.46
A21: Savate (8 fl.oz. bottle), 30+ | B21: Savate (8 fl.oz. bottle) | C21: 30+ | D21: 342.72 | E21: 351.37 | F21: 345.11 | G21: 380.8 | H21: 390.42 | I21: 383.46

Sheet Dropdowns (hidden)
A1: Yes | B1: CA
A2: No | B2: WA
B3: National
